fUSD/lending_fUSD_20240426
["ID","MTS","AMOUNT","RATE_DAILY","PERIOD"]
[323629278,1714144275064,-375.46322555,0.0001247,2]
[323629279,1714144275074,-500.0,0.0001247,2]
[323629280,1714144275084,-500.0,0.0001247,2]
[323629281,1714144275094,-500.0,0.0001247,2]
[323629282,1714144275104,-500.0,0.0001247,2]
[323629283,1714144275114,-500.0,0.0001247,2]
[323629284,1714144275123,-783.4,0.0001247,2]
[323629285,1714144275133,-500.0,0.0001247,2]
[323629286,1714144275143,-500.0,0.0001247,2]
[323629287,1714144275152,-500.0,0.0001247,2]
[323629288,1714144275164,-500.0,0.0001247,2]
[323629289,1714144275174,-500.0,0.0001247,2]
[323629290,1714144275183,-500.0,0.0001247,2]
[323629291,1714144275192,-500.0,0.0001247,2]
[323629292,1714144275201,-500.0,0.0001247,2]
[323629293,1714144275211,-500.0,0.0001247,2]
[323629294,1714144275220,-500.0,0.0001247,2]
[323629295,1714144275230,-484.00842954,0.0001247,2]
[323629296,1714144275240,-500.0,0.0001247,2]
[323629297,1714144275250,-645.21358643,0.0001247,2]
[323629298,1714144275260,-500.0,0.0001247,2]
[323629299,1714144275270,-500.0,0.0001247,2]
[323629300,1714144275280,-500.0,0.0001247,2]
[323629301,1714144275290,-698.77,0.0001247,2]
[323629302,1714144275300,-500.0,0.0001247,2]
[323629303,1714144275310,-500.0,0.0001247,2]
[323629304,1714144275320,-500.0,0.0001247,2]
[323629305,1714144275329,-218.44,0.0001247,2]
[323629306,1714144275339,-503.63584899,0.0001247,2]
[323629307,1714144275348,-500.0,0.0001247,2]
[323629308,1714144275357,-500.0,0.0001247,2]
[323629309,1714144275366,-500.0,0.0001247,2]
[323629310,1714144275376,-500.0,0.0001247,2]
[323629311,1714144275385,-500.0,0.0001247,2]
[323629312,1714144275395,-500.0,0.0001247,2]
[323629313,1714144275406,-735.81,0.0001247,2]
[323629314,1714144275419,-816.18,0.0001247,2]
[323629315,1714144275429,-500.0,0.0001247,2]
[323629316,1714144275439,-883.08,0.0001247,2]
[323629317,1714144275449,-500.0,0.0001247,2]
[323629318,1714144275460,-500.0,0.0001247,2]
[323629319,1714144275470,-500.0,0.0001247,2]
[323629320,1714144275480,-411.73,0.0001247,2]
[323629321,1714144275490,-500.0,0.0001247,2]
[323629322,1714144275500,-500.0,0.0001247,2]
[323629323,1714144275510,-500.0,0.0001247,2]
[323629324,1714144275519,-500.0,0.0001247,2]
[323629325,1714144275529,-500.0,0.0001247,2]
[323629326,1714144275538,-656.76,0.0001247,2]
[323629327,1714144275548,-500.0,0.0001247,2]
[323629328,1714144275559,-500.0,0.0001247,2]
[323629329,1714144275568,-500.0,0.0001247,2]
[323629330,1714144275578,-505.15,0.0001247,2]
[323629331,1714144275588,-500.0,0.0001247,2]
[323629332,1714144275599,-500.0,0.0001247,2]
[323629333,1714144275609,-500.0,0.0001247,2]
[323629334,1714144275622,-500.0,0.0001247,2]
[323629335,1714144275632,-500.0,0.0001247,2]
[323629336,1714144275643,-500.0,0.0001247,2]
[323629337,1714144275653,-500.0,0.0001247,2]
[323629338,1714144275669,-233.57,0.0001247,2]
[323629339,1714144275678,-1504.28,0.0001247,2]
[323629340,1714144275688,-500.0,0.0001247,2]
[323629341,1714144275698,-500.0,0.0001247,2]
[323629342,1714144275707,-500.0,0.0001247,2]
[323629343,1714144275718,-700.46,0.0001247,2]
[323629344,1714144275727,-505.79,0.0001247,2]
[323629345,1714144275736,-500.0,0.0001247,2]
[323629346,1714144275746,-500.0,0.0001247,2]
[323629347,1714144275755,-500.0,0.0001247,2]
[323629348,1714144275764,-271.02,0.0001247,2]
[323629349,1714144275773,-500.0,0.0001247,2]
[323629350,1714144275782,-500.0,0.0001247,2]
[323629351,1714144275791,-1660.69,0.0001247,2]
[323629352,1714144275801,-500.0,0.0001247,2]
[323629353,1714144275811,-650.53,0.0001247,2]
[323629354,1714144275820,-2081.9,0.0001247,2]
[323629355,1714144275831,-500.0,0.0001247,2]
[323629356,1714144275840,-500.0,0.0001247,2]
[323629357,1714144275850,-657.82,0.0001247,2]
[323629358,1714144275860,-500.0,0.0001247,2]
[323629359,1714144275869,-500.0,0.0001247,2]
[323629360,1714144275879,-500.0,0.0001247,2]
[323629361,1714144275889,-320.38798596,0.0001247,2]
[323629362,1714144275899,-500.0,0.0001247,2]
[323629363,1714144275913,-505.05,0.0001247,2]
[323629364,1714144275923,-500.0,0.0001247,2]
[323629365,1714144275934,-242.81,0.0001247,2]
[323629366,1714144275944,-500.0,0.0001247,2]
[323629367,1714144275954,-500.0,0.0001247,2]
[323629368,1714144275964,-500.0,0.0001247,2]
[323629369,1714144275974,-562.21,0.0001247,2]
[323629370,1714144275984,-500.0,0.0001247,2]
[323629371,1714144275993,-969.05,0.0001247,2]
[323629372,1714144276004,-500.0,0.0001247,2]
[323629373,1714144276014,-500.0,0.0001247,2]
[323629374,1714144276022,-500.0,0.0001247,2]
[323629375,1714144276031,-2831.12,0.0001247,2]
[323629376,1714144276039,-844.43,0.0001247,2]
[323629377,1714144276047,-500.0,0.0001247,2]
[323629378,1714144276056,-500.0,0.0001247,2]
[323629379,1714144276066,-500.0,0.0001247,2]
[323629380,1714144276076,-500.0,0.0001247,2]
[323629381,1714144276086,-500.0,0.0001247,2]
[323629382,1714144276098,-500.0,0.0001247,2]
[323629383,1714144276108,-500.0,0.0001247,2]
[323629384,1714144276117,-500.0,0.0001247,2]
[323629385,1714144276127,-932.13,0.0001247,2]
[323629386,1714144276136,-500.0,0.0001247,2]
[323629387,1714144276147,-500.0,0.0001247,2]
[323629388,1714144276156,-500.0,0.0001247,2]
[323629389,1714144276171,-500.0,0.0001247,2]
[323629390,1714144276181,-500.0,0.0001247,2]
[323629391,1714144276191,-500.0,0.0001247,2]
[323629392,1714144276200,-520.61,0.0001247,2]
[323629393,1714144276210,-500.0,0.0001247,2]
[323629394,1714144276220,-500.0,0.0001247,2]
[323629395,1714144276229,-500.0,0.0001247,2]
[323629396,1714144276239,-500.0,0.0001247,2]
[323629397,1714144276248,-942.72,0.0001247,2]
[323629398,1714144276258,-500.0,0.0001247,2]
[323629399,1714144276268,-500.0,0.0001247,2]
[323629400,1714144276277,-500.0,0.0001247,2]
[323629401,1714144276287,-500.0,0.0001247,2]
[323629402,1714144276297,-969.99,0.0001247,2]
[323629403,1714144276306,-749.77,0.0001247,2]
[323629404,1714144276316,-257.9,0.0001247,2]
[323629405,1714144276325,-500.0,0.0001247,2]
[323629406,1714144276335,-500.0,0.0001247,2]
[323629407,1714144276344,-500.0,0.0001247,2]
[323629408,1714144276354,-500.0,0.0001247,2]
[323629409,1714144276363,-703.62,0.0001247,2]
[323629410,1714144276373,-1102.31,0.0001247,2]
[323629411,1714144276383,-500.0,0.0001247,2]
[323629412,1714144276392,-500.0,0.0001247,2]
[323629413,1714144276402,-677.3,0.0001247,2]
[323629414,1714144276412,-500.0,0.0001247,2]
[323629415,1714144276422,-500.0,0.0001247,2]
[323629416,1714144276432,-500.0,0.0001247,2]
[323629417,1714144276441,-500.0,0.0001247,2]
[323629418,1714144276450,-500.0,0.0001247,2]
[323629419,1714144276459,-560.92,0.0001247,2]
[323629420,1714144276468,-500.0,0.00012473,2]
[323629421,1714144276478,-500.0,0.00012473,2]
[323629422,1714144276488,-546.92,0.00012473,2]
[323629423,1714144276497,-500.0,0.00012473,2]
[323629424,1714144276507,-806.39,0.00012473,2]
[323629425,1714144276516,-500.0,0.00012473,2]
[323629426,1714144276529,-590.07,0.00012473,2]
[323629427,1714144276538,-500.0,0.00012473,2]
[323629428,1714144276548,-500.0,0.00012473,2]
[323629429,1714144276557,-918.04,0.00012473,2]
[323629430,1714144276567,-500.0,0.00012473,2]
[323629431,1714144276577,-670.75,0.00012473,2]
[323629432,1714144276587,-500.0,0.00012473,2]
[323629433,1714144276600,-500.0,0.00012473,2]
[323629434,1714144276609,-500.0,0.00012473,2]
[323629435,1714144276619,-833.03,0.00012473,2]
[323629436,1714144276629,-235.41407352,0.00012473,2]
[323629437,1714144276639,-504.80216562,0.00012473,2]
[323629438,1714144276649,-500.0,0.00012473,2]
[323629439,1714144276658,-500.0,0.00012473,2]
[323629440,1714144276670,-500.0,0.00012473,2]
[323629441,1714144276681,-661.93,0.00012473,2]
[323629442,1714144276691,-500.0,0.00012473,2]
[323629443,1714144276701,-592.24,0.00012473,2]
[323629444,1714144276710,-881.03,0.00012473,2]
[323629445,1714144276720,-500.0,0.00012473,2]
[323629446,1714144276729,-500.0,0.00012473,2]
[323629447,1714144276739,-697.79,0.00012473,2]
[323629448,1714144276748,-717.33,0.00012473,2]
[323629449,1714144276758,-500.0,0.00012473,2]
[323629450,1714144276768,-622.4,0.00012473,2]
[323629451,1714144276778,-500.0,0.00012473,2]
[323629452,1714144276787,-500.0,0.00012473,2]
[323629453,1714144276797,-500.0,0.00012473,2]
[323629454,1714144276806,-399.04598269,0.00012473,2]
[323629455,1714144276816,-606.6,0.00012473,2]
[323629456,1714144276825,-500.0,0.00012473,2]
[323629457,1714144276835,-500.0,0.00012473,2]
[323629458,1714144276844,-500.0,0.00012473,2]
[323629459,1714144276853,-500.0,0.00012473,2]
[323629460,1714144276863,-506.89,0.00012473,2]
[323629461,1714144276872,-539.0,0.00012473,2]
[323629462,1714144277062,-500.0,0.00012473,2]
[323629463,1714144277072,-500.0,0.00012473,2]
[323629464,1714144277082,-500.0,0.00012473,2]
[323629465,1714144277091,-500.0,0.00012473,2]
[323629466,1714144277101,-500.0,0.00012473,2]
[323629467,1714144277110,-570.27,0.00012473,2]
[323629468,1714144277120,-809.01,0.00012473,2]
[323629469,1714144277129,-220.44,0.00012473,2]
[323629470,1714144277139,-500.0,0.00012473,2]
[323629471,1714144277148,-500.0,0.00012473,2]
[323629472,1714144277158,-300.46132484,0.00012473,2]
[323629473,1714144277175,-500.0,0.00012473,2]
[323629474,1714144277185,-500.0,0.00012473,2]
[323629475,1714144277199,-747.09,0.00012473,2]
[323629476,1714144277213,-566.68,0.00012473,2]
[323629477,1714144277222,-548.88,0.00012473,2]
[323629478,1714144277232,-500.0,0.00012473,2]
[323629479,1714144277241,-946.11,0.00012473,2]
[323629480,1714144277251,-500.0,0.00012473,2]
[323629481,1714144277260,-500.0,0.00012473,2]
[323629482,1714144277269,-657.11,0.00012473,2]
[323629483,1714144277278,-500.0,0.00012473,2]
[323629484,1714144277288,-491.38925426,0.00012473,2]
[323629485,1714144277297,-500.0,0.00012473,2]
[323629486,1714144277306,-540.5440968,0.00012473,2]
[323629487,1714144277315,-500.0,0.00012473,2]
[323629488,1714144277325,-689.01,0.00012473,2]
[323629489,1714144277334,-500.0,0.00012473,2]
[323629490,1714144277343,-500.0,0.00012473,2]
[323629491,1714144277353,-500.0,0.00012473,2]
[323629492,1714144277362,-500.0,0.00012473,2]
[323629493,1714144277371,-500.0,0.00012473,2]
[323629494,1714144277381,-500.0,0.00012473,2]
[323629495,1714144277390,-596.83515145,0.00012473,2]
[323629496,1714144277399,-611.6840163,0.00012473,2]
[323629497,1714144277412,-565.55,0.00012473,2]
[323629498,1714144277425,-934.2,0.00012473,2]
[323629499,1714144277435,-838.38,0.00012473,2]
[323629500,1714144277445,-500.0,0.00012473,2]
[323629501,1714144277454,-694.38,0.00012473,2]
[323629502,1714144277464,-689.85,0.00012473,2]
[323629503,1714144277473,-500.0,0.00012473,2]
[323629504,1714144277483,-500.0,0.00012473,2]
[323629505,1714144277492,-516.1277797,0.00012473,2]
[323629506,1714144277503,-500.0,0.00012473,2]
[323629507,1714144277512,-815.04,0.00012473,2]
[323629508,1714144277521,-644.53,0.00012473,2]
[323629509,1714144277530,-500.0,0.00012473,2]
[323629510,1714144277541,-500.0,0.00012473,2]
[323629511,1714144277550,-500.0,0.00012473,2]
[323629512,1714144277559,-500.0,0.00012473,2]
[323629513,1714144277568,-500.0,0.00012473,2]
[323629514,1714144277577,-500.0,0.00012473,2]
[323629515,1714144277587,-728.02,0.00012473,2]
[323629516,1714144277597,-500.0,0.00012473,2]
[323629517,1714144277606,-500.0,0.00012473,2]
[323629518,1714144277616,-769.5,0.00012473,2]
[323629519,1714144277626,-500.0,0.00012473,2]
[323629520,1714144277636,-500.0,0.00012473,2]
[323629521,1714144277646,-500.0,0.00012473,2]
[323629522,1714144277655,-561.77030712,0.00012473,2]
[323629523,1714144277667,-500.0,0.00012473,2]
[323629524,1714144277677,-500.0,0.00012473,2]
[323629525,1714144277686,-565.75,0.00012473,2]
[323629526,1714144277698,-500.0,0.00012473,2]
[323629527,1714144277709,-500.0,0.00012473,2]
[323629528,1714144277718,-570.98,0.00012473,2]
[323629529,1714144277727,-500.0,0.00012473,2]
[323629530,1714144277736,-1856.63,0.00012473,2]
[323629531,1714144277747,-500.0,0.00012473,2]
[323629532,1714144277756,-815.7,0.00012473,2]
[323629533,1714144277766,-500.0,0.00012473,2]
[323629534,1714144277775,-500.0,0.00012473,2]
[323629535,1714144277785,-500.0,0.00012473,2]
[323629536,1714144277794,-250.56651029,0.00012473,2]
[323629537,1714144277804,-500.0,0.00012473,2]
[323629538,1714144277814,-500.0,0.00012473,2]
[323629539,1714144277824,-502.16299137,0.00012473,2]
[323629540,1714144277834,-644.09,0.00012473,2]
[323629541,1714144277843,-500.0,0.00012473,2]
[323629542,1714144277853,-500.0,0.00012473,2]
[323629543,1714144277862,-500.0,0.00012473,2]
[323629544,1714144277872,-500.0,0.00012473,2]
[323629545,1714144277881,-500.0,0.00012473,2]
[323629546,1714144277891,-500.0,0.00012473,2]
[323629547,1714144277900,-500.0,0.00012473,2]
[323629548,1714144277909,-500.0,0.00012473,2]
[323629549,1714144277920,-500.0,0.00012473,2]
[323629550,1714144277930,-500.0,0.00012473,2]
[323629551,1714144277939,-500.0,0.00012473,2]
[323629552,1714144277948,-500.0,0.00012473,2]
[323629553,1714144277958,-500.0,0.00012473,2]
[323629554,1714144277967,-659.04,0.00012473,2]
[323629555,1714144277976,-669.23,0.00012473,2]
[323629556,1714144277986,-500.0,0.00012473,2]
[323629557,1714144277995,-500.0,0.00012473,2]
[323629558,1714144278004,-500.0,0.00012473,2]
[323629559,1714144278013,-500.0,0.00012473,2]
[323629560,1714144278022,-500.0,0.00012473,2]
[323629561,1714144278032,-500.0,0.00012473,2]
[323629562,1714144278041,-500.0,0.00012473,2]
[323629563,1714144278050,-500.0,0.00012473,2]
[323629564,1714144278059,-589.96,0.00012473,2]
[323629565,1714144278068,-500.0,0.00012473,2]
[323629566,1714144278077,-500.0,0.00012473,2]
[323629567,1714144278086,-533.29,0.00012473,2]
[323629568,1714144278095,-500.0,0.00012473,2]
[323629569,1714144278104,-531.91,0.00012473,2]
[323629570,1714144278112,-590.28,0.00012473,2]
[323629571,1714144278121,-500.0,0.00012473,2]
[323629572,1714144278130,-500.0,0.00012473,2]
[323629573,1714144278139,-500.0,0.00012473,2]
[323629574,1714144278148,-500.0,0.00012473,2]
[323629575,1714144278156,-510.26,0.00012473,2]
[323629576,1714144278167,-758.48,0.00012473,2]
[323629577,1714144278176,-500.0,0.00012473,2]
[323629578,1714144278185,-500.0,0.00012473,2]
[323629579,1714144278194,-815.14,0.00012473,2]
[323629580,1714144278202,-1077.93,0.00012473,2]
[323629581,1714144278211,-1259.87,0.00012473,2]
[323629582,1714144278220,-500.0,0.00012473,2]
[323629583,1714144278230,-808.56,0.00012473,2]
[323629584,1714144278240,-500.0,0.00012473,2]
[323629585,1714144278249,-500.0,0.00012473,2]
[323629586,1714144278259,-500.0,0.00012473,2]
[323629587,1714144278270,-500.0,0.00012473,2]
[323629588,1714144278278,-551.94939514,0.00012473,2]
[323629589,1714144278289,-500.0,0.00012473,2]
[323629590,1714144278298,-531.05,0.00012473,2]
[323629591,1714144278307,-500.0,0.00012473,2]
[323629592,1714144278318,-500.0,0.00012473,2]
[323629593,1714144278328,-563.54,0.00012473,2]
[323629594,1714144278338,-500.0,0.00012473,2]
[323629595,1714144278347,-500.0,0.00012473,2]
[323629596,1714144278357,-500.0,0.00012473,2]
[323629597,1714144278366,-500.0,0.00012473,2]
[323629598,1714144278375,-500.0,0.00012473,2]
[323629599,1714144278384,-500.0,0.00012473,2]
[323629600,1714144278393,-500.0,0.00012473,2]
[323629601,1714144278402,-500.0,0.00012473,2]
[323629602,1714144278411,-1134.79,0.00012473,2]
[323629603,1714144278420,-500.0,0.00012473,2]
[323629604,1714144278429,-500.0,0.00012473,2]
[323629605,1714144278438,-1438.05,0.00012473,2]
[323629606,1714144278446,-500.0,0.00012473,2]
[323629607,1714144278454,-500.0,0.00012473,2]
[323629608,1714144278464,-500.0,0.00012473,2]
[323629609,1714144278474,-925.0,0.00012473,2]
[323629610,1714144278483,-162.71601414,0.00012473,2]
[323629611,1714144278492,-1992.64,0.00012473,2]
[323629612,1714144278501,-500.0,0.00012473,2]
[323629613,1714144278509,-694.43,0.00012473,2]
[323629614,1714144278519,-500.0,0.00012473,2]
[323629615,1714144278528,-500.0,0.00012473,2]
[323629616,1714144278537,-500.0,0.00012473,2]
[323629617,1714144278547,-623.59,0.00012473,2]
[323629618,1714144278556,-500.0,0.00012473,2]
[323629619,1714144278565,-500.0,0.00012473,2]
[323629620,1714144278574,-1036.96,0.00012473,2]
[323629621,1714144278583,-500.0,0.00012473,2]
[323629622,1714144278593,-500.0,0.00012473,2]
[323629623,1714144278603,-500.0,0.00012473,2]
[323629624,1714144278615,-500.0,0.00012473,2]
[323629625,1714144278624,-1556.53,0.00012473,2]
[323629626,1714144278634,-500.0,0.00012473,2]
[323629627,1714144278645,-500.0,0.00012473,2]
[323629628,1714144278654,-500.0,0.00012473,2]
[323629629,1714144278665,-1114.29,0.00012473,2]
[323629630,1714144278674,-500.0,0.00012473,2]
[323629631,1714144278684,-500.0,0.00012473,2]
[323629632,1714144278693,-500.0,0.00012473,2]
[323629633,1714144278702,-500.0,0.00012473,2]
[323629634,1714144278711,-932.29,0.00012473,2]
[323629635,1714144278720,-500.0,0.00012473,2]
[323629636,1714144278729,-500.0,0.00012473,2]
[323629637,1714144278738,-500.0,0.00012473,2]
[323629638,1714144278747,-765.44,0.00012473,2]
[323629639,1714144278756,-500.0,0.00012473,2]
[323629640,1714144278765,-2801.26,0.00012473,2]
[323629641,1714144278774,-500.0,0.00012473,2]
[323629642,1714144278783,-500.0,0.00012473,2]
[323629643,1714144278793,-500.0,0.00012473,2]
[323629644,1714144278802,-500.0,0.00012473,2]
[323629645,1714144278811,-2633.84,0.00012473,2]
[323629646,1714144278821,-500.0,0.00012473,2]
[323629647,1714144278830,-500.0,0.00012473,2]
[323629648,1714144278839,-560.40598552,0.00012473,2]
[323629649,1714144278849,-500.0,0.00012473,2]
[323629650,1714144278858,-500.0,0.00012473,2]
[323629651,1714144278867,-500.0,0.00012473,2]
[323629652,1714144278876,-500.0,0.00012473,2]
[323629653,1714144278885,-500.0,0.00012473,2]
[323629654,1714144278895,-500.0,0.00012473,2]
[323629655,1714144278904,-500.0,0.00012473,2]
[323629656,1714144278916,-1187.43,0.00012473,2]
[323629657,1714144278925,-1270.93,0.00012473,2]
[323629658,1714144278935,-500.0,0.00012473,2]
[323629659,1714144278944,-500.0,0.00012473,2]
[323629660,1714144278954,-500.0,0.00012473,2]
[323629661,1714144278963,-3016.12,0.00012473,2]
[323629662,1714144278972,-500.0,0.00012473,2]
[323629663,1714144278982,-500.0,0.00012473,2]
[323629664,1714144278991,-500.0,0.00012473,2]
[323629665,1714144279000,-500.0,0.00012473,2]
[323629666,1714144279009,-1519.31,0.00012473,2]
[323629667,1714144279019,-500.0,0.00012473,2]
[323629668,1714144279028,-500.0,0.00012473,2]
[323629669,1714144279037,-500.0,0.00012473,2]
[323629670,1714144279046,-708.42,0.00012473,2]
[323629671,1714144279055,-737.33,0.00012473,2]
[323629672,1714144279064,-500.0,0.00012473,2]
[323629673,1714144279074,-500.0,0.00012473,2]
[323629674,1714144279083,-500.0,0.00012473,2]
[323629675,1714144279093,-500.0,0.00012473,2]
[323629676,1714144279102,-698.49,0.00012473,2]
[323629677,1714144279115,-500.0,0.00012473,2]
[323629678,1714144279125,-500.0,0.00012473,2]
[323629679,1714144279135,-500.0,0.00012473,2]
[323629680,1714144279144,-500.0,0.00012473,2]
[323629681,1714144279153,-500.0,0.00012473,2]
[323629682,1714144279166,-500.0,0.00012473,2]
[323629683,1714144279176,-500.0,0.00012473,2]
[323629684,1714144279185,-500.0,0.00012473,2]
[323629685,1714144279194,-500.0,0.00012473,2]
[323629686,1714144279204,-500.0,0.00012473,2]
[323629687,1714144279213,-500.0,0.00012473,2]
[323629688,1714144279222,-500.0,0.00012473,2]
[323629689,1714144279232,-500.0,0.00012473,2]
[323629690,1714144279242,-500.0,0.00012473,2]
[323629691,1714144279251,-500.0,0.00012473,2]
[323629692,1714144279261,-500.0,0.00012473,2]
[323629693,1714144279271,-500.0,0.00012473,2]
[323629694,1714144279281,-792.9,0.00012473,2]
[323629695,1714144279290,-500.0,0.00012473,2]
[323629696,1714144279300,-500.0,0.00012473,2]
[323629697,1714144279309,-500.0,0.00012473,2]
[323629698,1714144279319,-615.82,0.00012473,2]
[323629699,1714144279328,-642.58,0.00012473,2]
[323629700,1714144279338,-262.43,0.00012474,2]
[323629701,1714144279347,-500.0,0.00012474,2]
[323629702,1714144279357,-500.0,0.00012474,2]
[323629703,1714144279366,-391.7,0.00012474,2]
[323629704,1714144279551,-365.03,0.00012474,2]
[323629705,1714144279561,-361.48,0.00012474,2]
[323629706,1714144279570,-500.0,0.00012474,2]
[323629707,1714144279579,-500.0,0.00012474,2]
[323629708,1714144279589,-475.88,0.00012474,2]
[323629709,1714144279600,-197.08,0.00012474,2]
[323629710,1714144279610,-500.0,0.00012474,2]
[323629711,1714144279619,-500.0,0.00012474,2]
[323629712,1714144279628,-500.0,0.00012474,2]
[323629713,1714144279639,-500.0,0.00012474,2]
[323629714,1714144279649,-500.0,0.00012474,2]
[323629715,1714144279658,-500.0,0.00012475,2]
[323629716,1714144279671,-500.0,0.00012475,2]
[323629717,1714144279682,-499.39562385,0.00012475,2]
[323629718,1714144279691,-628.93,0.00012487,2]
[323629719,1714144279701,-728.15,0.00012487,2]
[323629720,1714144279710,-500.0,0.00012487,2]
[323629721,1714144279719,-500.0,0.00012487,2]
[323629722,1714144279728,-579.74,0.00012487,2]
[323629723,1714144279738,-562.33,0.00012487,2]
[323629724,1714144279748,-505.10505913,0.00012487,2]
[323629725,1714144279757,-799.85,0.00012487,2]
[323629726,1714144279767,-500.0,0.00012487,2]
[323629727,1714144279776,-500.0,0.00012487,2]
[323629728,1714144279786,-572.36,0.00012487,2]
[323629729,1714144279795,-500.0,0.00012487,2]
[323629730,1714144279804,-500.0,0.00012487,2]
[323629731,1714144279814,-500.0,0.00012487,2]
[323629732,1714144279822,-458.87778004,0.00012487,2]
[323629733,1714144279832,-339.64863968,0.00012487,2]
[323629734,1714144279841,-650.23,0.00012487,2]
[323629735,1714144279851,-264.54,0.00012487,2]
[323629736,1714144279860,-225.08,0.00012487,2]
[323629737,1714144279870,-251.69476738,0.000125,2]
[323629738,1714144279879,-754.15257926,0.00012508,2]
[323629739,1714144279888,-500.0,0.00012578,2]
[323629740,1714144279898,-500.0,0.00012578,2]
[323629741,1714144279907,-500.0,0.00012578,2]
[323629742,1714144279921,-829.23,0.00012578,2]
[323629743,1714144279931,-500.0,0.00012578,2]
[323629744,1714144279940,-638.12,0.00012578,2]
[323629745,1714144279950,-500.0,0.00012578,2]
[323629746,1714144279959,-549.85,0.00012578,2]
[323629747,1714144279970,-500.0,0.00012578,2]
[323629748,1714144279979,-807.86,0.00012578,2]
[323629749,1714144279988,-588.1,0.00012578,2]
[323629750,1714144279998,-500.0,0.00012578,2]
[323629751,1714144280008,-500.0,0.00012578,2]
[323629752,1714144280018,-33730.11750917,0.000126,2]
[323629753,1714144280027,-754.15257926,0.00012606,2]
[323629754,1714144280036,-716.16,0.0001264,2]
[323629755,1714144280046,-500.0,0.00012642,2]
[323629756,1714144280055,-1929.54,0.00012644,2]
[323629757,1714144280065,-2966.68,0.00012644,2]
[323629758,1714144280075,-500.0,0.00012644,2]
[323629759,1714144280087,-2021.25,0.00012644,2]
[323629760,1714144280099,-959.53,0.00012644,2]
[323629761,1714144280108,-1581.39,0.00012644,2]
[323629762,1714144280118,-1999.67,0.00012644,2]
[323629763,1714144280129,-1479.0,0.00012644,2]
[323629764,1714144280138,-500.0,0.00012644,2]
[323629765,1714144280147,-500.0,0.00012644,2]
[323629766,1714144280157,-1335.86,0.00012644,2]
[323629767,1714144280171,-500.0,0.00012644,2]
[323629768,1714144280181,-500.0,0.00012644,2]
[323629769,1714144280190,-3036.88,0.00012644,2]
[323629770,1714144280200,-2181.33,0.00012644,2]
[323629771,1714144280209,-756.35,0.00012644,2]
[323629772,1714144280219,-530.87,0.00012644,2]
[323629773,1714144280228,-1511.47,0.00012644,2]
[323629774,1714144280237,-1781.76,0.00012644,2]
[323629775,1714144280247,-535.46,0.00012644,2]
[323629776,1714144280256,-929.19,0.00012644,2]
[323629777,1714144280266,-2050.24,0.00012644,2]